{"text_format":"1","workbook":"xlsx","n_sheets":6,"sheets":["ANASAYFA","5sınıf","6sınıf ","7sınıf","8sınıf","Sayfa1"],"not_rendered":{"charts":0,"images":5,"macros":1,"external_links":1,"defined_names":9,"comments":0,"pivot_tables":0},"unopened":[],"bounds":{"document_bytes":16777216,"sheet_cells":100000,"rows_first":2000,"rows_last":500,"rows_between":2000,"halvings":0,"cell_chars":16384,"cell_head_chars":4096},"cells_cut":0,"cells_raw":0,"read":"whole","date_system":"1900"}

{"sheet":"ANASAYFA","index":0,"n_rows":0,"n_cols":0,"rows_kept":0,"cut":false,"hidden":false,"merged":[[3,3,4,16],[5,3,6,16],[7,3,8,16]]}

{"sheet":"5sınıf","index":1,"n_rows":59,"n_cols":45,"rows_kept":59,"cut":false,"hidden":false,"merged":[[39,1,39,5],[39,13,39,17],[40,1,40,5],[40,13,40,17],[34,1,34,2],[34,3,34,4],[34,5,34,9],[34,10,34,15],[34,16,34,17],[35,0,36,0],[35,1,35,2],[35,3,35,17],[36,1,36,2],[36,3,36,17],[32,16,32,17],[33,1,33,2],[33,3,33,4],[33,5,33,9],[33,10,33,15],[33,16,33,17],[31,0,34,0],[31,1,31,2],[31,3,31,4],[31,5,31,9],[31,10,31,15],[31,16,31,17],[32,1,32,2],[32,3,32,4],[32,5,32,9],[32,10,32,15],[29,0,29,1],[29,2,29,5],[29,6,29,9],[29,10,29,15],[29,16,29,17],[30,0,30,17],[27,0,27,1],[27,2,27,5],[27,6,27,9],[27,10,27,15],[27,16,27,17],[28,0,28,1],[28,2,28,5],[28,6,28,9],[28,10,28,15],[28,16,28,17],[25,0,25,17],[26,0,26,1],[26,2,26,5],[26,6,26,9],[26,10,26,15],[26,16,26,17],[24,0,24,1],[24,2,24,8],[24,9,24,11],[24,12,24,13],[24,14,24,15],[24,16,24,17],[23,0,23,1],[23,2,23,8],[23,9,23,11],[23,12,23,13],[23,14,23,15],[23,16,23,17],[21,0,22,8],[21,9,22,11],[21,12,21,17],[22,12,22,13],[22,14,22,15],[22,16,22,17],[18,0,20,1],[18,2,20,4],[18,5,18,7],[18,8,18,17],[19,5,19,7],[19,8,19,17],[20,5,20,7],[20,8,20,17],[15,0,17,1],[15,2,17,4],[15,5,15,7],[15,8,15,17],[16,5,16,7],[16,8,16,17],[17,5,17,7],[17,8,17,17],[12,0,14,1],[12,2,14,4],[12,5,12,7],[12,8,12,17],[13,5,13,7],[13,8,13,17],[14,5,14,7],[14,8,14,17],[8,8,8,17],[9,0,11,1],[9,2,11,4],[9,5,9,7],[9,8,9,17],[10,5,10,7],[10,8,10,17],[11,5,11,7],[11,8,11,17],[4,0,4,3],[4,5,4,6],[4,7,4,9],[4,11,4,12],[4,14,4,16],[5,0,5,1],[5,2,5,4],[5,5,5,17],[6,0,8,1],[6,2,8,4],[6,5,6,7],[6,8,6,17],[7,5,7,7],[7,8,7,17],[8,5,8,7],[0,0,0,17],[1,0,1,4],[1,7,1,8],[1,9,1,11],[1,12,1,17],[2,0,2,17],[3,0,3,4],[3,5,3,8],[3,9,3,10],[3,12,3,14],[3,15,3,17]]}
["2024-2025 EĞİTİM VE ÖĞRETİM YILI \nŞEHİT ABDULHAMİT KAYA İMAM HATİP ORTAOKULU",null,null,null,null,null,null,null,null,null,null,null,null,null,null,null,null,null,null,"EYLÜL","EYLÜL",{"$f":"IF(U1=$J$2,1,0)","v":0},{"$f":"V1","v":0},"Sınıf başkanı, başkan yardımcısı seçimi- sınıf oturma planı hazırlama",null,null,{"$f":"MATCH(1,$W$1:$W$64,0)","v":10},{"$f":"MATCH(LARGE($W$1:$W$64,1),$W$1:$W$64,0)","v":15},null,null,null,"/ A",1,"GÖKBEN OKTAN",null,null,null,null,null,null,"EYLÜL","2024-09-01",{"$f":"EOMONTH(AP1,0)","v":"2024-09-30"},null,{"$f":"VLOOKUP($J$2,AO1:AP10,2,0)","v":"2024-11-01"}]
["REHBERLİK HİZMETLERİ",null,null,null,null,5,"/ C","SINIFI",null,"KASIM",null,null," AYI ÇALIŞMA RAPORU",null,null,null,null,null,null,"EKİM","EYLÜL",{"$f":"IF(U2=$J$2,1,0)","v":0},{"$f":"IF(V2=1,W1+1,0)","v":0},"Öğrenci Bilgi Formu Uygulaması/güncellemesi",null,null,null,{"$f":"\"x\"&$AA$1&\":x\"&$AB$1","v":"x10:x15"},{"$f":"\"y\"&$AA$1&\":y\"&$AB$1","v":"y10:y15"},{"$f":"\"z\"&$AA$1&\":z\"&$AB$1","v":"z10:z15"},null,"/ B",2,"DEMET CAN",null,null,null,null,null,null,"EKİM",{"$f":"EDATE(AP1,1)","v":"2024-10-01"},{"$f":"EOMONTH(AP2,0)","v":"2024-10-31"},null,{"$f":"IFERROR(IF((AS1+1)<=VLOOKUP($J$2,$AO$1:$AQ$10,3,0),AS1+1,\"\"),\"\")","v":"2024-11-02"}]
[null,null,null,null,null,null,null,null,null,null,null,null,null,null,null,null,null,null,null,"KASIM","EYLÜL",0,{"$f":"IF(V3=1,W2+1,0)","v":0},"Okulun bölümlerini ve okulda çalışan personeli tanır.",null,null,null,null,null,null,null,"/ C",3,"DERYA ÇINAR",null,null,null,null,null,null,"KASIM",{"$f":"EDATE(AP2,1)","v":"2024-11-01"},"2024-11-30",null,{"$f":"IFERROR(IF((AS2+1)<=VLOOKUP($J$2,$AO$1:$AQ$10,3,0),AS2+1,\"\"),\"\")","v":"2024-11-03"}]
["SINIF/ŞUBE REHBER  ÖĞRETMENİNİN ADI SOYADI    ",null,null,null,null,"ADEM DİŞÇİ",null,null,null,"RAPOR NO",null,null,"RAPOR TARİHİ",null,null,"2024-11-24",null,null,null,"ARALIK","EYLÜL",0,0,"Okulun yakınındaki çevreyi tanır.",null,null,null,null,null,null,null,"/ D",4,"TUBA YÜCEL",null,null,null,null,null,null,"ARALIK","2024-12-01","2024-12-31",null,"2024-11-04"]
["SINIF",null,null,null,{"$f":"CONCATENATE(F2,G2)","v":"5/ C"},"SINIF MEVCUDU",null,"KIZ",null,null,null,"ERKEK",null,null,"TOPLAM",null,null,{"$f":"SUM(K5+N5)","v":0},null,"OCAK","EYLÜL",0,0,"Sınıf kurallarının oluşturulmasına katkı sağlar.",null,null,null,null,null,null,null,"/ E",5,"EMİNE METİN",null,null,null,null,null,null,"OCAK","2025-01-01","2025-01-31",null,"2024-11-05"]
["SIRA",null,"TARİH",null,null,"ETKİNLİK ÇALIŞMALARI",null,null,null,null,null,null,null,null,null,null,null,null,null,"ŞUBAT","EKİM",0,0,"Okul ve çevresinde risk oluşturabilecek durum ve ortamlara karşı kendini korur.",null,null,null,null,null,null,null,"/ F",6,"ADEM DİŞÇİ",null,null,null,null,null,null,"ŞUBAT","2025-02-01","2025-02-28",null,"2024-11-06"]
[1,null,null,null,null,"ETKİNLİĞİN ADI",null,null,"Sanatsal ve sportif etkinliklerden hoşlandıklarını ayırt eder.",null,null,null,null,null,null,null,null,null,null,"MART","EKİM",0,0,"*Kimden, nereden, ne zaman ve nasıl yardım isteyebileceğini bilir.",null,null,null,null,null,null,null,null,7,"EBRU BÜLBÜL",null,null,null,null,null,null,"MART","2025-03-01","2025-03-31",null,"2024-11-07"]
[null,null,null,null,null,"KAZANIM",null,null,null,null,null,null,null,null,null,null,null,null,null,"NİSAN","EKİM",0,0,"Okul ve sınıf kurallarına uyulmadığında ortaya çıkabilecek sonuçları tartışır.",null,null,null,null,null,null,null,null,8,"ERDOĞAN YILMAZ",null,null,null,null,null,null,"NİSAN","2025-04-01","2025-04-30",null,"2024-11-08"]
[null,null,null,null,null,"YETERLİLİK ALANI",null,null,null,null,null,null,null,null,null,null,null,null,null,"MAYIS","EKİM",0,0,"Okul ve sınıf kurallarına uyar.",null,null,null,null,null,null,null,null,9,"YUSUF KALKAN",null,null,null,null,null,null,"MAYIS","2025-05-01","2025-05-31",null,"2024-11-09"]
[2,null,null,null,null,"ETKİNLİĞİN ADI",null,null,null,null,null,null,null,null,null,null,null,null,null,"HAZİRAN","KASIM",1,1,"Okulun eğitsel imkânları hakkında bilgi edinir.",null,null,null,null,null,null,null,null,10,"İRFAN KARA",null,null,null,null,null,null,"HAZİRAN","2025-06-01","2025-06-30",null,"2024-11-10"]
[null,null,null,null,null,"KAZANIM",null,null,null,null,null,null,null,null,null,null,null,null,null,null,"KASIM",1,2,"Sanatsal ve sportif etkinliklerden hoşlandıklarını ayırt eder.",null,null,null,null,null,null,null,null,11,"EVİN KARAKAYA",null,null,null,null,null,null,null,null,null,null,"2024-11-11"]
[null,null,null,null,null,"YETERLİLİK ALANI",null,null,null,null,null,null,null,null,null,null,null,null,null,null,"KASIM",1,3,"ARA TATİL",null,null,null,null,null,null,null,null,12,"AYNUR ÖZDEMİR",null,null,null,null,null,null,null,null,null,null,"2024-11-12"]
[3,null,null,null,null,"ETKİNLİĞİN ADI",null,null,null,null,null,null,null,null,null,null,null,null,null,null,"KASIM",1,4,"Okul hazırlığına ilişkin sorumluluklarını üstlenir.",null,null,null,null,null,null,null,null,13,"AYŞE PİRİNÇÇİ",null,null,null,null,null,null,null,null,null,null,"2024-11-13"]
[null,null,null,null,null,"KAZANIM",null,null,null,null,null,null,null,null,null,null,null,null,null,null,"KASIM",1,5,"Okulunun ve sınıfının bir üyesi olduğunu fark eder.",null,null,null,null,null,null,null,null,14,"GÜLDEN GÜLER",null,null,null,null,null,null,null,null,null,null,"2024-11-14"]
[null,null,null,null,null,"YETERLİLİK ALANI",null,null,null,null,null,null,null,null,null,null,null,null,null,null,"KASIM",1,6,"Sınıf risk haritasının hazırlanması",null,null,null,null,null,null,null,null,15,"SUNADÜĞÜNYURDU",null,null,null,null,null,null,null,null,null,null,"2024-11-15"]
[4,null,null,null,null,"ETKİNLİĞİN ADI",null,null,null,null,null,null,null,null,null,null,null,null,null,null,"ARALIK",0,0,"Akademik gelişimi için amaçlar oluşturur.",null,null,null,null,null,null,null,null,16,"YASİN HAKAN",null,null,null,null,null,null,null,null,null,null,"2024-11-16"]
[null,null,null,null,null,"KAZANIM",null,null,null,null,null,null,null,null,null,null,null,null,null,null,"ARALIK",0,0,"Sahip olduğu karakter güçlerini fark eder.",null,null,null,null,null,null,null,null,17,"DERYA ALİOĞLU",null,null,null,null,null,null,null,null,null,null,"2024-11-17"]
[null,null,null,null,null,"YETERLİLİK ALANI",null,null,null,null,null,null,null,null,null,null,null,null,null,null,"ARALIK",0,0,"Sahip olduğu karakter güçlerini fark eder.",null,null,null,null,null,null,null,null,18,"MÜMİN KELEŞ",null,null,null,null,null,null,null,null,null,null,"2024-11-18"]
[5,null,null,null,null,"ETKİNLİĞİN ADI",null,null,null,null,null,null,null,null,null,null,null,null,null,null,"ARALIK",0,0,"Arkadaşlık kurmada karakter güçlerini kullanır.",null,null,null,null,null,null,null,null,19,"AYŞE AKYOL",null,null,null,null,null,null,null,null,null,null,"2024-11-19"]
[null,null,null,null,null,"KAZANIM",null,null,null,null,null,null,null,null,null,null,null,null,null,null,"OCAK",0,0,"İyi bir dinleyici olur.",null,null,null,null,null,null,null,null,20,"LEYLA TEPESU",null,null,null,null,null,null,null,null,null,null,"2024-11-20"]
[null,null,null,null,null,"YETERLİLİK ALANI",null,null,null,null,null,null,null,null,null,null,null,null,null,null,"OCAK",0,0,"Beden dilinin iletişimdeki önemini fark eder.",null,null,null,null,null,null,null,null,21,"YELİZ FİTOZ",null,null,null,null,null,null,null,null,null,null,{"$f":"IFERROR(IF((AS20+1)<=VLOOKUP($J$2,$AO$1:$AQ$10,3,0),AS20+1,\"\"),\"\")","v":"2024-11-21"}]
["UYGULANAN TEST VE ANKETLER",null,null,null,null,null,null,null,null,"UYGULAMA TARİHİ",null,null,"UYGULANAN ÖĞRENCİ SAYISI",null,null,null,null,null,null,null,"OCAK",0,0,"Sanatsal ve sportif etkinliklerden başarabildiklerini ayırt eder.",null,null,null,null,null,null,null,null,22,"GÜLİSTAN TEKTAŞ",null,null,null,null,null,null,null,null,null,null,"2024-11-22"]
[null,null,null,null,null,null,null,null,null,null,null,null,"KIZ",null," ERKEK",null,"TOPLAM",null,null,null,"OCAK",0,0,"1.Dönem sonu sınıf rehberlik faaliyet raporunun hazırlanması ve teslimi",null,null,null,null,null,null,null,null,23,"CEYDA AZAKLI",null,null,null,null,null,null,null,null,null,null,"2024-11-23"]
[1,null,null,null,null,null,null,null,null,null,null,null,null,null,null,null,{"$f":"SUM(M24:P24)","v":0},null,null,null,"OCAK",0,0,"YARIYIL TATİLİ",null,null,null,null,null,null,null,null,24,"ZEHRA DURDU",null,null,null,null,null,null,null,null,null,null,"2024-11-24"]
[2,null,null,null,null,null,null,null,null,null,null,null,null,null,null,null,null,null,null,null,"ŞUBAT",0,0,"YARI YIL TATİLİ",null,null,null,null,null,null,null,null,25,"SAİT AFŞAR",null,null,null,null,null,null,null,null,null,null,"2024-11-25"]
["VELİLERLE YAPILAN GÖRÜŞMELER",null,null,null,null,null,null,null,null,null,null,null,null,null,null,null,null,null,null,null,"ŞUBAT",0,0,"Çalışma ve üretmenin insan yaşamındaki önemini fark eder.",null,null,null,null,null,null,null,null,26,"HİLAL SEZER",null,null,null,null,null,null,null,null,null,null,"2024-11-26"]
["SIRA",null,"VELİ",null,null,null,"ÖĞRENCİSİ",null,null,null,"GÖRÜŞME KONUSU",null,null,null,null,null,"TARİH",null,null,null,"ŞUBAT",0,0,"Bir meslek sahibi olmanın kendisi ve toplum için önemini fark eder.",null,null,null,null,null,null,null,null,27,"HATİCE BÜŞRA ÇİFTÇİ",null,null,null,null,null,null,null,null,null,null,{"$f":"IFERROR(IF((AS26+1)<=VLOOKUP($J$2,$AO$1:$AQ$10,3,0),AS26+1,\"\"),\"\")","v":"2024-11-27"}]
[1,null,null,null,null,null,null,null,null,null,null,null,null,null,null,null,null,null,null,null,"ŞUBAT",0,0,"Geleceği hayal ederek yaşam amaçları oluşturur.",null,null,null,null,null,null,null,null,28,"HÜSEYİN OKAN ERTÜRK",null,null,null,null,null,null,null,null,null,null,"2024-11-28"]
[2,null,null,null,null,null,null,null,null,null,null,null,null,null,null,null,null,null,null,null,"ŞUBAT",0,0,"DP - RPD Hizmetleri Yürütme Komisyonu Toplantısının Yapılması",null,null,null,null,null,null,null,null,29,"FATİH ÇELEBİ",null,null,null,null,null,null,null,null,null,null,"2024-11-29"]
[3,null,null,null,null,null,null,null,null,null,null,null,null,null,null,null,null,null,null,null,"MART",0,0,"Arkadaşlık ilişkilerini sürdürme konusunda yapabileceklerini bilir.",null,null,null,null,null,null,null,null,30,"M.SELİM GÜMÜŞTEN",null,null,null,null,null,null,null,null,null,null,"2024-11-30"]
["ÖĞRENCİLERLE YAPILAN GÖRÜŞMELER",null,null,null,null,null,null,null,null,null,null,null,null,null,null,null,null,null,null,null,"MART",0,0,"Değişen duygu durumlarını fark eder.",null,null,null,null,null,null,null,null,31,"ELİF BUDAK",null,null,null,null,null,null,null,null,null,null,""]
["ÖĞRENCİNİN","SIRA",null,"NO",null," ADI VE SOYADI",null,null,null,null,"GÖRÜŞME KONUSU",null,null,null,null,null,"TARİH",null,null,null,"MART",0,0,"Başkalarının duygu ve düşüncelerini anlamak için etkili dinleme stratejilerini kullanır.",null,null,null,null,null,null,null,null,32,"EMİNE METİN",null,null,null,null,null,null,null,null,null,null,""]
[null,1,null,null,null,null,null,null,null,null,null,null,null,null,null,null,null,null,null,null,"MART",0,0,"Başkalarının bakış açısının kendi bakış açısından farklı olabileceğini kabul eder.",null,null,null,null,null,null,null,null,33,"HÜSEYİN BAŞARAN",null,null,null,null,null,null,null,null,null,null,""]
[null,2,null,null,null,null,null,null,null,null,null,null,null,null,null,null,null,null,null,null,"MART",0,0,"Kültürel farklılıklara duyarlı bir bakış açısı geliştir.",null,null,null,null,null,null,null,null,34,"MUKADDES AYKUT"]
[null,3,null,null,null,null,null,null,null,null,null,null,null,null,null,null,null,null,null,null,"NİSAN",0,0,"ARA TATİL",null,null,null,null,null,null,null,null,35]
["DİĞER ÇALIŞMALAR",1,null,null,null,null,null,null,null,null,null,null,null,null,null,null,null,null,null,null,"NİSAN",0,0,"Yardım etme becerilerini kullanır.",null,null,null,null,null,null,null,null,36]
[null,2,null,null,null,null,null,null,null,null,null,null,null,null,null,null,null,null,null,null,"NİSAN",0,0,"Büyüme ve gelişmenin yaşamın doğal bir parçası olduğunu örneklerle açıklar.",null,null,null,null,null,null,null,null,37]
[null,null,null,null,null,null,null,null,null,null,null,null,null,null,null,null,null,null,null,null,"NİSAN",0,0,"Büyüme ve gelişmenin yaşamın doğal bir parçası olduğunu örneklerle açıklar.",null,null,null,null,null,null,null,null,38]
[null,null,null,null,null,null,null,null,null,null,null,null,null,null,null,null,null,null,null,null,"NİSAN",0,0,"Sanal arkadaşlığı, arkadaşlık ilişkileri kapsamında sorgular.",null,null,null,null,null,null,null,null,39]
[null,{"$f":"F4","v":"ADEM DİŞÇİ"},null,null,null,null,null,null,null,null,null,null,null,"Ümit GÜZEL",null,null,null,null,null,null,"MAYIS",0,0,"Çatışmanın ve anlaşmazlıkların yaşamın bir parçası olduğunu fark eder.",null,null,null,null,null,null,null,null,40]
[null,"Sınıf/Şube Rehber Öğretmeni",null,null,null,null,null,null,null,null,null,null,null,"Okul Müdürü",null,null,null,null,null,null,"MAYIS",0,0,"Gerektiğinde arkadaşlığını sonlandırır.",null,null,null,null,null,null,null,null,41]
[null,null,null,null,null,null,null,null,null,null,null,null,null,null,null,null,null,null,null,null,"MAYIS",0,0,"Akademik amaçlarını gerçekleştirme konusunda kendini değerlendirir.",null,null,null,null,null,null,null,null,42]
[null,null,null,null,null,null,null,null,null,null,null,null,null,null,null,null,null,null,null,null,"MAYIS",0,0,"Karar verme sürecini etkileyen faktörleri açıklar.",null,null,null,null,null,null,null,null,43]
[null,null,null,null,null,null,null,null,null,null,null,null,null,null,null,null,null,null,null,null,"MAYIS",0,0,"Rehberlik ihtiyacı belirleme anketi uygulamaları (öğrenci,veli), sınıf sonuç çizelgelerinin hazırlanması (öğrenci)",null,null,null,null,null,null,null,null,44]
[null,null,null,null,null,null,null,null,null,null,null,null,null,null,null,null,null,null,null,null,"HAZİRAN",0,0,"Ders seçiminde karar verme becerisini kullanır.",null,null,null,null,null,null,null,null,45]
[null,null,null,null,null,null,null,null,null,null,null,null,null,null,null,null,null,null,null,null,"HAZİRAN",0,0,"DP - RPD Hizmetleri Yürütme Komisyonu Toplantısının Yapılması",null,null,null,null,null,null,null,null,46]
[null,null,null,null,null,null,null,null,null,null,null,null,null,null,null,null,null,null,null,null,"HAZİRAN",0,0,"Sınıf rehberlik programı etkinliklerine/yaşantılarına ilişkin duygu ve düşüncelerini yansıtır.",null,null,null,null,null,null,null,null,47]
[null,null,null,null,null,null,null,null,null,null,null,null,null,null,null,null,null,null,null,null,"HAZİRAN",0,0,"2.Dönem sonu sınıf rehberlik faaliyet raporunun hazırlanması ve teslimi",null,null,null,null,null,null,null,null,48]
[null,null,null,null,null,null,null,null,null,null,null,null,null,null,null,null,null,null,null,null,null,null,null,null,null,null,null,null,null,null,null,null,49]
[null,null,null,null,null,null,null,null,null,null,null,null,null,null,null,null,null,null,null,null,null,null,null,null,null,null,null,null,null,null,null,null,50]
[null,null,null,null,null,null,null,null,null,null,null,null,null,null,null,null,null,null,null,null,null,null,null,null,null,null,null,null,null,null,null,null,51]
[null,null,null,null,null,null,null,null,null,null,null,null,null,null,null,null,null,null,null,null,null,null,null,null,null,null,null,null,null,null,null,null,52]
[null,null,null,null,null,null,null,null,null,null,null,null,null,null,null,null,null,null,null,null,null,null,null,null,null,null,null,null,null,null,null,null,53]
[null,null,null,null,null,null,null,null,null,null,null,null,null,null,null,null,null,null,null,null,null,null,null,null,null,null,null,null,null,null,null,null,54]
[null,null,null,null,null,null,null,null,null,null,null,null,null,null,null,null,null,null,null,null,null,null,null,null,null,null,null,null,null,null,null,null,55]
[null,null,null,null,null,null,null,null,null,null,null,null,null,null,null,null,null,null,null,null,null,null,null,null,null,null,null,null,null,null,null,null,56]
[null,null,null,null,null,null,null,null,null,null,null,null,null,null,null,null,null,null,null,null,null,null,null,null,null,null,null,null,null,null,null,null,57]
[null,null,null,null,null,null,null,null,null,null,null,null,null,null,null,null,null,null,null,null,null,null,null,null,null,null,null,null,null,null,null,null,58]
[null,null,null,null,null,null,null,null,null,null,null,null,null,null,null,null,null,null,null,null,null,null,null,null,null,null,null,null,null,null,null,null,59]

{"sheet":"6sınıf ","index":2,"n_rows":59,"n_cols":46,"rows_kept":59,"cut":false,"hidden":false,"merged":[[0,0,0,17],[1,0,1,4],[1,7,1,8],[1,9,1,11],[1,12,1,17],[2,0,2,17],[3,0,3,4],[3,5,3,8],[3,9,3,10],[3,12,3,14],[3,15,3,17],[4,0,4,3],[4,5,4,6],[4,7,4,9],[4,11,4,12],[4,14,4,16],[5,0,5,1],[5,2,5,4],[5,5,5,17],[6,0,8,1],[6,2,8,4],[6,5,6,7],[6,8,6,17],[7,5,7,7],[7,8,7,17],[8,5,8,7],[12,0,14,1],[12,2,14,4],[12,5,12,7],[12,8,12,17],[13,5,13,7],[13,8,13,17],[14,5,14,7],[14,8,14,17],[8,8,8,17],[9,0,11,1],[9,2,11,4],[9,5,9,7],[9,8,9,17],[10,5,10,7],[10,8,10,17],[11,5,11,7],[11,8,11,17],[18,0,20,1],[18,2,20,4],[18,5,18,7],[18,8,18,17],[19,5,19,7],[19,8,19,17],[20,5,20,7],[20,8,20,17],[15,0,17,1],[15,2,17,4],[15,5,15,7],[15,8,15,17],[16,5,16,7],[16,8,16,17],[17,5,17,7],[17,8,17,17],[23,0,23,1],[23,2,23,8],[23,9,23,11],[23,12,23,13],[23,14,23,15],[23,16,23,17],[21,0,22,8],[21,9,22,11],[21,12,21,17],[22,12,22,13],[22,14,22,15],[22,16,22,17],[25,0,25,17],[26,0,26,1],[26,2,26,5],[26,6,26,9],[26,10,26,15],[26,16,26,17],[24,0,24,1],[24,2,24,8],[24,9,24,11],[24,12,24,13],[24,14,24,15],[24,16,24,17],[29,0,29,1],[29,2,29,5],[29,6,29,9],[29,10,29,15],[29,16,29,17],[30,0,30,17],[27,0,27,1],[27,2,27,5],[27,6,27,9],[27,10,27,15],[27,16,27,17],[28,0,28,1],[28,2,28,5],[28,6,28,9],[28,10,28,15],[28,16,28,17],[35,0,36,0],[35,1,35,2],[35,3,35,17],[36,1,36,2],[36,3,36,17],[32,16,32,17],[33,1,33,2],[33,3,33,4],[33,5,33,9],[33,10,33,15],[33,16,33,17],[31,0,34,0],[31,1,31,2],[31,3,31,4],[31,5,31,9],[31,10,31,15],[31,16,31,17],[32,1,32,2],[32,3,32,4],[32,5,32,9],[32,10,32,15],[39,1,39,5],[39,13,39,17],[40,1,40,5],[40,13,40,17],[34,1,34,2],[34,3,34,4],[34,5,34,9],[34,10,34,15],[34,16,34,17]]}
["2024-2025 EĞİTİM VE ÖĞRETİM YILI \nŞEHİT ABDULHAMİT KAYA İMAM HATİP ORTAOKULU",null,null,null,null,null,null,null,null,null,null,null,null,null,null,null,null,null,null,"EYLÜL","EYLÜL",{"$f":"IF(U1=$J$2,1,0)","v":0},{"$f":"V1","v":0},"Sınıf başkanı, başkan yardımcısı seçimi- sınıf oturma planı hazırlama",null,null,null,{"$f":"MATCH(1,$W$1:$W$64,0)","v":30},{"$f":"MATCH(LARGE($W$1:$W$64,1),$W$1:$W$64,0)","v":34},null,null,null,"/ A",1,"GÖKBEN OKTAN",null,null,null,null,null,null,"EYLÜL","2024-09-01",{"$f":"EOMONTH(AQ1,0)","v":"2024-09-30"},null,{"$f":"VLOOKUP($J$2,AP1:AQ10,2,0)","v":"2025-03-01"}]
["REHBERLİK HİZMETLERİ",null,null,null,null,6,"/ A","SINIFI",null,"MART",null,null," AYI ÇALIŞMA RAPORU",null,null,null,null,null,null,"EKİM","EYLÜL",{"$f":"IF(U2=$J$2,1,0)","v":0},{"$f":"IF(V2=1,W1+1,0)","v":0},"Öğrenci Bilgi Formu Uygulaması/güncellemesi",null,null,null,null,{"$f":"\"x\"&$AB$1&\":x\"&$AC$1","v":"x30:x34"},{"$f":"\"y\"&$AB$1&\":y\"&$AC$1","v":"y30:y34"},{"$f":"\"z\"&$AB$1&\":z\"&$AC$1","v":"z30:z34"},null,"/ B",2,"DEMET CAN",null,null,null,null,null,null,"EKİM",{"$f":"EDATE(AQ1,1)","v":"2024-10-01"},{"$f":"EOMONTH(AQ2,0)","v":"2024-10-31"},null,{"$f":"IFERROR(IF((AT1+1)<=VLOOKUP($J$2,$AP$1:$AR$10,3,0),AT1+1,\"\"),\"\")","v":"2025-03-02"}]
[null,null,null,null,null,null,null,null,null,null,null,null,null,null,null,null,null,null,null,"KASIM","EYLÜL",0,{"$f":"IF(V3=1,W2+1,0)","v":0},"İyilik hâlini destekleyen davranışları,\nyaşamında uygular.",null,null,null,null,null,null,null,null,"/ C",3,"DERYA ÇINAR",null,null,null,null,null,null,"KASIM",{"$f":"EDATE(AQ2,1)","v":"2024-11-01"},"2024-11-30",null,{"$f":"IFERROR(IF((AT2+1)<=VLOOKUP($J$2,$AP$1:$AR$10,3,0),AT2+1,\"\"),\"\")","v":"2025-03-03"}]
["SINIF/ŞUBE REHBER  ÖĞRETMENİNİN ADI SOYADI    ",null,null,null,null,"DERYA ALİOĞLU",null,null,null,"RAPOR NO",null,null,"RAPOR TARİHİ",null,null,null,null,null,null,"ARALIK","EYLÜL",0,0,"Zamanını ihtiyaçları ve sorumlulukları\nçerçevesinde planlar.",null,null,null,null,null,null,null,null,"/ D",4,"TUBA YÜCEL",null,null,null,null,null,null,"ARALIK","2024-12-01","2024-12-31",null,"2025-03-04"]
["SINIF",null,null,null,{"$f":"CONCATENATE(F2,G2)","v":"6/ A"},"SINIF MEVCUDU",null,"KIZ",null,null,null,"ERKEK",null,null,"TOPLAM",null,null,{"$f":"SUM(K5+N5)","v":0},null,"OCAK","EYLÜL",0,0,"Okula hazırlıklı gelme ile akademik gelişimi arasında bağ kurar.",null,null,null,null,null,null,null,null,"/ E",5,"EMİNE METİN",null,null,null,null,null,null,"OCAK","2025-01-01","2025-01-31",null,"2025-03-05"]
["SIRA",null,"TARİH",null,null,"ETKİNLİK ÇALIŞMALARI",null,null,null,null,null,null,null,null,null,null,null,null,null,"ŞUBAT","EKİM",0,0,"Başarmak için çalışmanın gerekliliğini fark eder.",null,null,null,null,null,null,null,null,"/ F",6,"ADEM DİŞÇİ",null,null,null,null,null,null,"ŞUBAT","2025-02-01","2025-02-28",null,"2025-03-06"]
[1,null,null,null,null,"ETKİNLİĞİN ADI",null,null,"Fiziksel ve duygusal değişimini fark eder.",null,null,null,null,null,null,null,null,null,null,"MART","EKİM",0,0,"Karakter güçleriyle kendi yaşamı arasında bağ kurar.",null,null,null,null,null,null,null,null,null,7,"EBRU BÜLBÜL",null,null,null,null,null,null,"MART","2025-03-01","2025-03-31",null,"2025-03-07"]
[null,null,null,null,null,"KAZANIM",null,null,null,null,null,null,null,null,null,null,null,null,null,"NİSAN","EKİM",0,0,"Takım çalışmalarının kişisel gelişimine etkilerini fark eder.",null,null,null,null,null,null,null,null,null,8,"ERDOĞAN YILMAZ",null,null,null,null,null,null,"NİSAN","2025-04-01","2025-04-30",null,"2025-03-08"]
[null,null,null,null,null,"YETERLİLİK ALANI",null,null,null,null,null,null,null,null,null,null,null,null,null,"MAYIS","EKİM",0,0,"Öğrenme etkinliklerine katılmasını engelleyen düşünce ve davranışlarını fark eder.",null,null,null,null,null,null,null,null,null,9,"YUSUF KALKAN",null,null,null,null,null,null,"MAYIS","2025-05-01","2025-05-31",null,"2025-03-09"]
[2,null,null,null,null,"ETKİNLİĞİN ADI",null,null,null,null,null,null,null,null,null,null,null,null,null,"HAZİRAN","KASIM",0,0,"Duyguların insan yaşamı için önemini kabul eder.",null,null,null,null,null,null,null,null,null,10,"İRFAN KARA",null,null,null,null,null,null,"HAZİRAN","2025-06-01","2025-06-30",null,"2025-03-10"]
[null,null,null,null,null,"KAZANIM",null,null,null,null,null,null,null,null,null,null,null,null,null,null,"KASIM",0,0,"Duygularını uygun biçimde ifade etme\nalışkanlığı kazanır.",null,null,null,null,null,null,null,null,null,11,"EVİN KARAKAYA",null,null,null,null,null,null,null,null,null,null,"2025-03-11"]
[null,null,null,null,null,"YETERLİLİK ALANI",null,null,null,null,null,null,null,null,null,null,null,null,null,null,"KASIM",0,0,"ARA TATİL",null,null,null,null,null,null,null,null,null,12,"AYNUR ÖZDEMİR",null,null,null,null,null,null,null,null,null,null,"2025-03-12"]
[3,null,null,null,null,"ETKİNLİĞİN ADI",null,null,null,null,null,null,null,null,null,null,null,null,null,null,"KASIM",0,0,"Çatışma çözme becerilerini kullanır.",null,null,null,null,null,null,null,null,null,13,"AYŞE PİRİNÇÇİ",null,null,null,null,null,null,null,null,null,null,"2025-03-13"]
[null,null,null,null,null,"KAZANIM",null,null,null,null,null,null,null,null,null,null,null,null,null,null,"KASIM",0,0,"Çatışma çözme becerilerini kullanır.",null,null,null,null,null,null,null,null,null,14,"GÜLDEN GÜLER",null,null,null,null,null,null,null,null,null,null,"2025-03-14"]
[null,null,null,null,null,"YETERLİLİK ALANI",null,null,null,null,null,null,null,null,null,null,null,null,null,null,"KASIM",0,0,"Sınıf risk haritasının hazırlanması",null,null,null,null,null,null,null,null,null,15,"SUNADÜĞÜNYURDU",null,null,null,null,null,null,null,null,null,null,"2025-03-15"]
[4,null,null,null,null,"ETKİNLİĞİN ADI",null,null,null,null,null,null,null,null,null,null,null,null,null,null,"ARALIK",0,0,"Durum ve olayların bireylerin duygusuna etkisini fark eder.",null,null,null,null,null,null,null,null,null,16,"YASİN HAKAN",null,null,null,null,null,null,null,null,null,null,"2025-03-16"]
[null,null,null,null,null,"KAZANIM",null,null,null,null,null,null,null,null,null,null,null,null,null,null,"ARALIK",0,0,"Sınıf tartışmalarında dinleyici ve katılımcı rolü üstlenir.",null,null,null,null,null,null,null,null,null,17,"DERYA ALİOĞLU",null,null,null,null,null,null,null,null,null,null,"2025-03-17"]
[null,null,null,null,null,"YETERLİLİK ALANI",null,null,null,null,null,null,null,null,null,null,null,null,null,null,"ARALIK",0,0,"Hoşlandığı etkinliklerin ilgilerinin bir göstergesi olabileceğini fark eder.",null,null,null,null,null,null,null,null,null,18,"MÜMİN KELEŞ",null,null,null,null,null,null,null,null,null,null,"2025-03-18"]
[5,null,null,null,null,"ETKİNLİĞİN ADI",null,null,null,null,null,null,null,null,null,null,null,null,null,null,"ARALIK",0,0,"İlgileri ile dersleri ilişkilendirir.",null,null,null,null,null,null,null,null,null,19,"AYŞE AKYOL",null,null,null,null,null,null,null,null,null,null,"2025-03-19"]
[null,null,null,null,null,"KAZANIM",null,null,null,null,null,null,null,null,null,null,null,null,null,null,"OCAK",0,0,"Yaşam amaçlarına ulaşmak için bir eylem planı hazırlar.",null,null,null,null,null,null,null,null,null,20,"LEYLA TEPESU",null,null,null,null,null,null,null,null,null,null,"2025-03-20"]
[null,null,null,null,null,"YETERLİLİK ALANI",null,null,null,null,null,null,null,null,null,null,null,null,null,null,"OCAK",0,0,"Yaşadığı yoğun duyguları yönetir.",null,null,null,null,null,null,null,null,null,21,"YELİZ FİTOZ",null,null,null,null,null,null,null,null,null,null,{"$f":"IFERROR(IF((AT20+1)<=VLOOKUP($J$2,$AP$1:$AR$10,3,0),AT20+1,\"\"),\"\")","v":"2025-03-21"}]
["UYGULANAN TEST VE ANKETLER",null,null,null,null,null,null,null,null,"UYGULAMA TARİHİ",null,null,"UYGULANAN ÖĞRENCİ SAYISI",null,null,null,null,null,null,null,"OCAK",0,0,"İyi oluşunu destekleyen duyguların yaşamındaki önemini fark eder.",null,null,null,null,null,null,null,null,null,22,"GÜLİSTAN TEKTAŞ",null,null,null,null,null,null,null,null,null,null,"2025-03-22"]
[null,null,null,null,null,null,null,null,null,null,null,null,"KIZ",null," ERKEK",null,"TOPLAM",null,null,null,"OCAK",0,0,"1.Dönem sonu sınıf rehberlik faaliyet raporunun hazırlanması ve teslimi",null,null,null,null,null,null,null,null,null,23,"CEYDA AZAKLI",null,null,null,null,null,null,null,null,null,null,"2025-03-23"]
[1,null,null,null,null,null,null,null,null,null,null,null,null,null,null,null,{"$f":"SUM(M24:P24)","v":0},null,null,null,"OCAK",0,0,"YARIYIL TATİLİ",null,null,null,null,null,null,null,null,null,24,"ZEHRA DURDU",null,null,null,null,null,null,null,null,null,null,"2025-03-24"]
[2,null,null,null,null,null,null,null,null,null,null,null,null,null,null,null,null,null,null,null,"ŞUBAT",0,0,"YARIYIL TATİLİ",null,null,null,null,null,null,null,null,null,25,"SAİT AFŞAR",null,null,null,null,null,null,null,null,null,null,"2025-03-25"]
["VELİLERLE YAPILAN GÖRÜŞMELER",null,null,null,null,null,null,null,null,null,null,null,null,null,null,null,null,null,null,null,"ŞUBAT",0,0,"Okul içindeki ve dışındaki eğitsel ve sosyal etkinliklere katılmanın gelişimine katkılarını değerlendirir.",null,null,null,null,null,null,null,null,null,26,"HİLAL SEZER",null,null,null,null,null,null,null,null,null,null,"2025-03-26"]
["SIRA",null,"VELİ",null,null,null,"ÖĞRENCİSİ",null,null,null,"GÖRÜŞME KONUSU",null,null,null,null,null,"TARİH",null,null,null,"ŞUBAT",0,0,"Eğitsel etkinliklerdeki başarısızlıkların öğrenme sürecinin bir parçası olduğunu kabul eder.",null,null,null,null,null,null,null,null,null,27,"HATİCE BÜŞRA ÇİFTÇİ",null,null,null,null,null,null,null,null,null,null,{"$f":"IFERROR(IF((AT26+1)<=VLOOKUP($J$2,$AP$1:$AR$10,3,0),AT26+1,\"\"),\"\")","v":"2025-03-27"}]
[1,null,null,null,null,null,null,null,null,null,null,null,null,null,null,null,null,null,null,null,"ŞUBAT",0,0,"Öğrenme sürecinde deneyimlediği\nbaşarısızlıkların üstesinden gelmek için farklı çözüm yolları dener.",null,null,null,null,null,null,null,null,null,28,"HÜSEYİN OKAN ERTÜRK",null,null,null,null,null,null,null,null,null,null,"2025-03-28"]
[2,null,null,null,null,null,null,null,null,null,null,null,null,null,null,null,null,null,null,null,"ŞUBAT",0,0,"DP - RPD Hizmetleri Yürütme Komisyonu Toplantısının Yapılması",null,null,null,null,null,null,null,null,null,29,"FATİH ÇELEBİ",null,null,null,null,null,null,null,null,null,null,"2025-03-29"]
[3,null,null,null,null,null,null,null,null,null,null,null,null,null,null,null,null,null,null,null,"MART",1,1,"Kişisel hakların korunması ve kişisel güvenliğin sağlanması için yönergeleri izler.",null,null,null,null,null,null,null,null,null,30,"M.SELİM GÜMÜŞTEN",null,null,null,null,null,null,null,null,null,null,"2025-03-30"]
["ÖĞRENCİLERLE YAPILAN GÖRÜŞMELER",null,null,null,null,null,null,null,null,null,null,null,null,null,null,null,null,null,null,null,"MART",1,2,"Kişisel güvenliği için “Hayır!” demenin önemine inanır.",null,null,null,null,null,null,null,null,null,31,"ELİF BUDAK",null,null,null,null,null,null,null,null,null,null,"2025-03-31"]
["ÖĞRENCİNİN","SIRA",null,"NO",null," ADI VE SOYADI",null,null,null,null,"GÖRÜŞME KONUSU",null,null,null,null,null,"TARİH",null,null,null,"MART",1,3,"Fiziksel ve duygusal değişimini fark eder.",null,null,null,null,null,null,null,null,null,32,"EMİNE METİN",null,null,null,null,null,null,null,null,null,null,""]
[null,1,null,null,null,null,null,null,null,null,null,null,null,null,null,null,null,null,null,null,"MART",1,4,"Karar verme sürecinde alternatif düşünceler geliştirmenin önemini açıklar.",null,null,null,null,null,null,null,null,null,33,"HÜSEYİN BAŞARAN",null,null,null,null,null,null,null,null,null,null,""]
[null,2,null,null,null,null,null,null,null,null,null,null,null,null,null,null,null,null,null,null,"MART",1,5,"Başarılı olduğu durumlar için kendini takdir eder.",null,null,null,null,null,null,null,null,null,34,"MUKADDES AYKUT"]
[null,3,null,null,null,null,null,null,null,null,null,null,null,null,null,null,null,null,null,null,"NİSAN",0,0,"ARA TATİL",null,null,null,null,null,null,null,null,null,35]
["DİĞER ÇALIŞMALAR",1,null,null,null,null,null,null,null,null,null,null,null,null,null,null,null,null,null,null,"NİSAN",0,0,"Yapabildiği etkinliklerin, yeteneklerinin bir göstergesi olabileceğini fark eder.",null,null,null,null,null,null,null,null,null,36]
[null,2,null,null,null,null,null,null,null,null,null,null,null,null,null,null,null,null,null,null,"NİSAN",0,0,"Derslerin etkinliklerini yetenekleriyle ilişkilendirir.",null,null,null,null,null,null,null,null,null,37]
[null,null,null,null,null,null,null,null,null,null,null,null,null,null,null,null,null,null,null,null,"NİSAN",0,0,"Derslerin etkinliklerini yetenekleriyle ilişkilendirir.",null,null,null,null,null,null,null,null,null,38]
[null,null,null,null,null,null,null,null,null,null,null,null,null,null,null,null,null,null,null,null,"NİSAN",0,0,"Davranışlarının kendisine ve çevresine etkilerini fark eder.",null,null,null,null,null,null,null,null,null,39]
[null,{"$f":"F4","v":"DERYA ALİOĞLU"},null,null,null,null,null,null,null,null,null,null,null,"Ümit GÜZEL",null,null,null,null,null,null,"MAYIS",0,0,"Kendini tanımlayan özelliklerin değişebilir olduğunu fark eder.",null,null,null,null,null,null,null,null,null,40]
[null,"Sınıf/Şube Rehber Öğretmeni",null,null,null,null,null,null,null,null,null,null,null,"Okul Müdürü",null,null,null,null,null,null,"MAYIS",0,0,"İnsanların farklı karakter güçlerine sahip olmasının kişiler arası ilişkilere zenginlik katacağını bilir.",null,null,null,null,null,null,null,null,null,41]
[null,null,null,null,null,null,null,null,null,null,null,null,null,null,null,null,null,null,null,null,"MAYIS",0,0,"Çalışarak bir şey üretmenin sorumluluğunu alır.",null,null,null,null,null,null,null,null,null,42]
[null,null,null,null,null,null,null,null,null,null,null,null,null,null,null,null,null,null,null,null,"MAYIS",0,0,"Kendi ilgileri ile mesleklerin özelliklerini\nilişkilendirir.",null,null,null,null,null,null,null,null,null,43]
[null,null,null,null,null,null,null,null,null,null,null,null,null,null,null,null,null,null,null,null,"MAYIS",0,0,"Rehberlik ihtiyacı belirleme anketi uygulamaları (öğrenci,veli), sınıf sonuç çizelgelerinin hazırlanması (öğrenci)",null,null,null,null,null,null,null,null,null,44]
[null,null,null,null,null,null,null,null,null,null,null,null,null,null,null,null,null,null,null,null,"HAZİRAN",0,0,"Derslerin mesleklerle ilişkisini açıklar.",null,null,null,null,null,null,null,null,null,45]
[null,null,null,null,null,null,null,null,null,null,null,null,null,null,null,null,null,null,null,null,"HAZİRAN",0,0,"2.Dönem sonu sınıf rehberlik faaliyet raporunun hazırlanması ve teslimi",null,null,null,null,null,null,null,null,null,46]
[null,null,null,null,null,null,null,null,null,null,null,null,null,null,null,null,null,null,null,null,"HAZİRAN",0,0,"Sınıf rehberlik programı\netkinliklerine/yaşantılarına ilişkin duygu ve düşüncelerini yansıtır.",null,null,null,null,null,null,null,null,null,47]
[null,null,null,null,null,null,null,null,null,null,null,null,null,null,null,null,null,null,null,null,"HAZİRAN",0,0,"DP - RPD Hizmetleri Yürütme Komisyonu Toplantısının Yapılması",null,null,null,null,null,null,null,null,null,48]
[null,null,null,null,null,null,null,null,null,null,null,null,null,null,null,null,null,null,null,null,null,null,null,null,null,null,null,null,null,null,null,null,null,49]
[null,null,null,null,null,null,null,null,null,null,null,null,null,null,null,null,null,null,null,null,null,null,null,null,null,null,null,null,null,null,null,null,null,50]
[null,null,null,null,null,null,null,null,null,null,null,null,null,null,null,null,null,null,null,null,null,null,null,null,null,null,null,null,null,null,null,null,null,51]
[null,null,null,null,null,null,null,null,null,null,null,null,null,null,null,null,null,null,null,null,null,null,null,null,null,null,null,null,null,null,null,null,null,52]
[null,null,null,null,null,null,null,null,null,null,null,null,null,null,null,null,null,null,null,null,null,null,null,null,null,null,null,null,null,null,null,null,null,53]
[null,null,null,null,null,null,null,null,null,null,null,null,null,null,null,null,null,null,null,null,null,null,null,null,null,null,null,null,null,null,null,null,null,54]
[null,null,null,null,null,null,null,null,null,null,null,null,null,null,null,null,null,null,null,null,null,null,null,null,null,null,null,null,null,null,null,null,null,55]
[null,null,null,null,null,null,null,null,null,null,null,null,null,null,null,null,null,null,null,null,null,null,null,null,null,null,null,null,null,null,null,null,null,56]
[null,null,null,null,null,null,null,null,null,null,null,null,null,null,null,null,null,null,null,null,null,null,null,null,null,null,null,null,null,null,null,null,null,57]
[null,null,null,null,null,null,null,null,null,null,null,null,null,null,null,null,null,null,null,null,null,null,null,null,null,null,null,null,null,null,null,null,null,58]
[null,null,null,null,null,null,null,null,null,null,null,null,null,null,null,null,null,null,null,null,null,null,null,null,null,null,null,null,null,null,null,null,null,59]

{"sheet":"7sınıf","index":3,"n_rows":59,"n_cols":46,"rows_kept":59,"cut":false,"hidden":false,"merged":[[0,0,0,17],[1,0,1,4],[1,7,1,8],[1,9,1,11],[1,12,1,17],[2,0,2,17],[3,0,3,4],[3,5,3,8],[3,9,3,10],[3,12,3,14],[3,15,3,17],[4,0,4,3],[4,5,4,6],[4,7,4,9],[4,11,4,12],[4,14,4,16],[5,0,5,1],[5,2,5,4],[5,5,5,17],[6,0,8,1],[6,2,8,4],[6,5,6,7],[6,8,6,17],[7,5,7,7],[7,8,7,17],[8,5,8,7],[12,0,14,1],[12,2,14,4],[12,5,12,7],[12,8,12,17],[13,5,13,7],[13,8,13,17],[14,5,14,7],[14,8,14,17],[8,8,8,17],[9,0,11,1],[9,2,11,4],[9,5,9,7],[9,8,9,17],[10,5,10,7],[10,8,10,17],[11,5,11,7],[11,8,11,17],[18,0,20,1],[18,2,20,4],[18,5,18,7],[18,8,18,17],[19,5,19,7],[19,8,19,17],[20,5,20,7],[20,8,20,17],[15,0,17,1],[15,2,17,4],[15,5,15,7],[15,8,15,17],[16,5,16,7],[16,8,16,17],[17,5,17,7],[17,8,17,17],[23,0,23,1],[23,2,23,8],[23,9,23,11],[23,12,23,13],[23,14,23,15],[23,16,23,17],[21,0,22,8],[21,9,22,11],[21,12,21,17],[22,12,22,13],[22,14,22,15],[22,16,22,17],[25,0,25,17],[26,0,26,1],[26,2,26,5],[26,6,26,9],[26,10,26,15],[26,16,26,17],[24,0,24,1],[24,2,24,8],[24,9,24,11],[24,12,24,13],[24,14,24,15],[24,16,24,17],[29,0,29,1],[29,2,29,5],[29,6,29,9],[29,10,29,15],[29,16,29,17],[30,0,30,17],[27,0,27,1],[27,2,27,5],[27,6,27,9],[27,10,27,15],[27,16,27,17],[28,0,28,1],[28,2,28,5],[28,6,28,9],[28,10,28,15],[28,16,28,17],[35,0,36,0],[35,1,35,2],[35,3,35,17],[36,1,36,2],[36,3,36,17],[32,16,32,17],[33,1,33,2],[33,3,33,4],[33,5,33,9],[33,10,33,15],[33,16,33,17],[31,0,34,0],[31,1,31,2],[31,3,31,4],[31,5,31,9],[31,10,31,15],[31,16,31,17],[32,1,32,2],[32,3,32,4],[32,5,32,9],[32,10,32,15],[39,1,39,5],[39,13,39,17],[40,1,40,5],[40,13,40,17],[34,1,34,2],[34,3,34,4],[34,5,34,9],[34,10,34,15],[34,16,34,17]]}
["2024-2025 EĞİTİM VE ÖĞRETİM YILI \nŞEHİT ABDULHAMİT KAYA İMAM HATİP ORTAOKULU",null,null,null,null,null,null,null,null,null,null,null,null,null,null,null,null,null,null,"EYLÜL","EYLÜL",{"$f":"IF(U1=$J$2,1,0)","v":0},{"$f":"V1","v":0},"Sınıf başkanı, başkan yardımcısı seçimi- sınıf oturma planı hazırlama",null,null,null,{"$f":"MATCH(1,$W$1:$W$64,0)","v":20},{"$f":"MATCH(LARGE($W$1:$W$64,1),$W$1:$W$64,0)","v":24},null,null,null,"/ A",1,"GÖKBEN OKTAN",null,null,null,null,null,null,"EYLÜL","2024-09-01",{"$f":"EOMONTH(AQ1,0)","v":"2024-09-30"},null,{"$f":"VLOOKUP($J$2,AP1:AQ10,2,0)","v":"2025-01-01"}]
["REHBERLİK HİZMETLERİ",null,null,null,null,7,"/ A","SINIFI",null,"OCAK",null,null," AYI ÇALIŞMA RAPORU",null,null,null,null,null,null,"EKİM","EYLÜL",{"$f":"IF(U2=$J$2,1,0)","v":0},{"$f":"IF(V2=1,W1+1,0)","v":0},"Öğrenci Bilgi Formu Uygulaması/güncellemesi",null,null,null,null,{"$f":"\"x\"&$AB$1&\":x\"&$AC$1","v":"x20:x24"},{"$f":"\"y\"&$AB$1&\":y\"&$AC$1","v":"y20:y24"},{"$f":"\"z\"&$AB$1&\":z\"&$AC$1","v":"z20:z24"},null,"/ B",2,"DEMET CAN",null,null,null,null,null,null,"EKİM",{"$f":"EDATE(AQ1,1)","v":"2024-10-01"},{"$f":"EOMONTH(AQ2,0)","v":"2024-10-31"},null,{"$f":"IFERROR(IF((AT1+1)<=VLOOKUP($J$2,$AP$1:$AR$10,3,0),AT1+1,\"\"),\"\")","v":"2025-01-02"}]
[null,null,null,null,null,null,null,null,null,null,null,null,null,null,null,null,null,null,null,"KASIM","EYLÜL",0,{"$f":"IF(V3=1,W2+1,0)","v":0},"Yeni durumlar ve değişimlerle ilgili duygularını ifade eder.",null,null,null,null,null,null,null,null,"/ C",3,"DERYA ÇINAR",null,null,null,null,null,null,"KASIM",{"$f":"EDATE(AQ2,1)","v":"2024-11-01"},"2024-11-30",null,{"$f":"IFERROR(IF((AT2+1)<=VLOOKUP($J$2,$AP$1:$AR$10,3,0),AT2+1,\"\"),\"\")","v":"2025-01-03"}]
["SINIF/ŞUBE REHBER  ÖĞRETMENİNİN ADI SOYADI    ",null,null,null,null,"FATİH ÇELEBİ",null,null,null,"RAPOR NO",null,5,"RAPOR TARİHİ",null,null,"2025-01-28",null,null,null,"ARALIK","EYLÜL",0,0,"Zamanını etkili kullanmanın akademik gelişimine etkisini açıklar.",null,null,null,null,null,null,null,null,"/ D",4,"TUBA YÜCEL",null,null,null,null,null,null,"ARALIK","2024-12-01","2024-12-31",null,"2025-01-04"]
["SINIF",null,null,null,{"$f":"CONCATENATE(F2,G2)","v":"7/ A"},"SINIF MEVCUDU",null,"KIZ",null,null,29,"ERKEK",null,null,"TOPLAM",null,null,{"$f":"SUM(K5+N5)","v":29},null,"OCAK","EYLÜL",0,0,"Zamanını etkili kullanmanın akademik gelişimine etkisini açıklar.",null,null,null,null,null,null,null,null,"/ E",5,"EMİNE METİN",null,null,null,null,null,null,"OCAK","2025-01-01","2025-01-31",null,"2025-01-05"]
["SIRA",null,"TARİH",null,null,"ETKİNLİK ÇALIŞMALARI",null,null,null,null,null,null,null,null,null,null,null,null,null,"ŞUBAT","EKİM",0,0,"Eğitsel çabanın akademik hedeflere ulaşmadaki etkisini değerlendirir.",null,null,null,null,null,null,null,null,"/ F",6,"ADEM DİŞÇİ",null,null,null,null,null,null,"ŞUBAT","2025-02-01","2025-02-28",null,"2025-01-06"]
[1,null,"2025-01-02",null,null,"ETKİNLİĞİN ADI",null,null,"Derste dinleme, not alma ve soru sorma gibi teknikleri kullanır.",null,null,null,null,null,null,null,null,null,null,"MART","EKİM",0,0,"Akademik çalışmalarını zamanında bitirmede kararlı olur.",null,null,null,null,null,null,null,null,null,7,"EBRU BÜLBÜL",null,null,null,null,null,null,"MART","2025-03-01","2025-03-31",null,"2025-01-07"]
[null,null,null,null,null,"KAZANIM",null,null,null,null,null,null,null,null,null,null,null,null,null,"NİSAN","EKİM",0,0,"Yapabildiği ve hoşlandığı etkinliklere dayalı olarak ilgi ve yeteneklerine örnekler verir.",null,null,null,null,null,null,null,null,null,8,"ERDOĞAN YILMAZ",null,null,null,null,null,null,"NİSAN","2025-04-01","2025-04-30",null,"2025-01-08"]
[null,null,null,null,null,"YETERLİLİK ALANI",null,null,null,null,null,null,null,null,null,null,null,null,null,"MAYIS","EKİM",0,0,"İlgi ve hobilerini ayırt eder.",null,null,null,null,null,null,null,null,null,9,"YUSUF KALKAN",null,null,null,null,null,null,"MAYIS","2025-05-01","2025-05-31",null,"2025-01-09"]
[2,null,"2025-01-08",null,null,"ETKİNLİĞİN ADI",null,null,"Belleğini güçlendirecek stratejileri açıklar.",null,null,null,null,null,null,null,null,null,null,"HAZİRAN","KASIM",0,0,"İlgi ve hobilerini ayırt eder.",null,null,null,null,null,null,null,null,null,10,"İRFAN KARA",null,null,null,null,null,null,"HAZİRAN","2025-06-01","2025-06-30",null,"2025-01-10"]
[null,null,null,null,null,"KAZANIM",null,null,null,null,null,null,null,null,null,null,null,null,null,null,"KASIM",0,0,"Akademik çalışmaları ile ilgili değişen durumlara uygun davranışlar sergiler.",null,null,null,null,null,null,null,null,null,11,"EVİN KARAKAYA",null,null,null,null,null,null,null,null,null,null,"2025-01-11"]
[null,null,null,null,null,"YETERLİLİK ALANI",null,null,null,null,null,null,null,null,null,null,null,null,null,null,"KASIM",0,0,"ARA TATİL",null,null,null,null,null,null,null,null,null,12,"AYNUR ÖZDEMİR",null,null,null,null,null,null,null,null,null,null,"2025-01-12"]
[3,null,"2025-01-15",null,null,"ETKİNLİĞİN ADI",null,null,"Sınavlara hazırlanmayı etkileyen faktörleri açıklar.",null,null,null,null,null,null,null,null,null,null,null,"KASIM",0,0,"Mesleklerle ilgili bilgi kaynaklarına ulaşır.",null,null,null,null,null,null,null,null,null,13,"AYŞE PİRİNÇÇİ",null,null,null,null,null,null,null,null,null,null,"2025-01-13"]
[null,null,null,null,null,"KAZANIM",null,null,null,null,null,null,null,null,null,null,null,null,null,null,"KASIM",0,0,"Her bireyin hak ve sorumlulukları olduğunu bilir.",null,null,null,null,null,null,null,null,null,14,"GÜLDEN GÜLER",null,null,null,null,null,null,null,null,null,null,"2025-01-14"]
[null,null,null,null,null,"YETERLİLİK ALANI",null,null,null,null,null,null,null,null,null,null,null,null,null,null,"KASIM",0,0,"Sınıf risk haritasının hazırlanması",null,null,null,null,null,null,null,null,null,15,"SUNADÜĞÜNYURDU",null,null,null,null,null,null,null,null,null,null,"2025-01-15"]
[4,null,"2025-01-29",null,null,"ETKİNLİĞİN ADI",null,null,"1.Dönem sonu sınıf rehberlik faaliyet raporunun hazırlanması ve teslimi",null,null,null,null,null,null,null,null,null,null,null,"ARALIK",0,0,"Kendisi için verimli öğrenme ve ders çalışma koşullarını oluşturur.",null,null,null,null,null,null,null,null,null,16,"YASİN HAKAN",null,null,null,null,null,null,null,null,null,null,"2025-01-16"]
[null,null,null,null,null,"KAZANIM",null,null,null,null,null,null,null,null,null,null,null,null,null,null,"ARALIK",0,0,"Öğrenme etkinliklerine yönelik duygu ve\ndüşüncelerini ifade eder.",null,null,null,null,null,null,null,null,null,17,"DERYA ALİOĞLU",null,null,null,null,null,null,null,null,null,null,"2025-01-17"]
[null,null,null,null,null,"YETERLİLİK ALANI",null,null,null,null,null,null,null,null,null,null,null,null,null,null,"ARALIK",0,0,"Arkadaşlarının olumlu özelliklerini takdir eder.",null,null,null,null,null,null,null,null,null,18,"MÜMİN KELEŞ",null,null,null,null,null,null,null,null,null,null,"2025-01-18"]
[5,null,null,null,null,"ETKİNLİĞİN ADI",null,null,null,null,null,null,null,null,null,null,null,null,null,null,"ARALIK",0,0,"Arkadaşlık ilişkilerinde yaşadığı sorunları yapıcı yollarla çözer.",null,null,null,null,null,null,null,null,null,19,"AYŞE AKYOL",null,null,null,null,null,null,null,null,null,null,"2025-01-19"]
[null,null,null,null,null,"KAZANIM",null,null,null,null,null,null,null,null,null,null,null,null,null,null,"OCAK",1,1,"Derste dinleme, not alma ve soru sorma gibi teknikleri kullanır.",null,null,null,null,null,null,null,null,null,20,"LEYLA TEPESU",null,null,null,null,null,null,null,null,null,null,"2025-01-20"]
[null,null,null,null,null,"YETERLİLİK ALANI",null,null,null,null,null,null,null,null,null,null,null,null,null,null,"OCAK",1,2,"Belleğini güçlendirecek stratejileri açıklar.",null,null,null,null,null,null,null,null,null,21,"YELİZ FİTOZ",null,null,null,null,null,null,null,null,null,null,{"$f":"IFERROR(IF((AT20+1)<=VLOOKUP($J$2,$AP$1:$AR$10,3,0),AT20+1,\"\"),\"\")","v":"2025-01-21"}]
["UYGULANAN TEST VE ANKETLER",null,null,null,null,null,null,null,null,"UYGULAMA TARİHİ",null,null,"UYGULANAN ÖĞRENCİ SAYISI",null,null,null,null,null,null,null,"OCAK",1,3,"Sınavlara hazırlanmayı etkileyen faktörleri açıklar.",null,null,null,null,null,null,null,null,null,22,"GÜLİSTAN TEKTAŞ",null,null,null,null,null,null,null,null,null,null,"2025-01-22"]
[null,null,null,null,null,null,null,null,null,null,null,null,"KIZ",null," ERKEK",null,"TOPLAM",null,null,null,"OCAK",1,4,"1.Dönem sonu sınıf rehberlik faaliyet raporunun hazırlanması ve teslimi",null,null,null,null,null,null,null,null,null,23,"CEYDA AZAKLI",null,null,null,null,null,null,null,null,null,null,"2025-01-23"]
[1,null,null,null,null,null,null,null,null,null,null,null,null,null,null,null,{"$f":"SUM(M24:P24)","v":0},null,null,null,"OCAK",1,5,"YARIYIL TATİLİ",null,null,null,null,null,null,null,null,null,24,"ZEHRA DURDU",null,null,null,null,null,null,null,null,null,null,"2025-01-24"]
[2,null,null,null,null,null,null,null,null,null,null,null,null,null,null,null,null,null,null,null,"ŞUBAT",0,0,"YARIYIL TATİLİ",null,null,null,null,null,null,null,null,null,25,"SAİT AFŞAR",null,null,null,null,null,null,null,null,null,null,"2025-01-25"]
["VELİLERLE YAPILAN GÖRÜŞMELER",null,null,null,null,null,null,null,null,null,null,null,null,null,null,null,null,null,null,null,"ŞUBAT",0,0,"Sınavlara hazırlanma davranışlarını gözden geçirir.",null,null,null,null,null,null,null,null,null,26,"HİLAL SEZER",null,null,null,null,null,null,null,null,null,null,"2025-01-26"]
["SIRA",null,"VELİ",null,null,null,"ÖĞRENCİSİ",null,null,null,"GÖRÜŞME KONUSU",null,null,null,null,null,"TARİH",null,null,null,"ŞUBAT",0,0,"Sosyal ipuçlarını yorumlayarak uygun tepkiler verir.",null,null,null,null,null,null,null,null,null,27,"HATİCE BÜŞRA ÇİFTÇİ",null,null,null,null,null,null,null,null,null,null,{"$f":"IFERROR(IF((AT26+1)<=VLOOKUP($J$2,$AP$1:$AR$10,3,0),AT26+1,\"\"),\"\")","v":"2025-01-27"}]
[1,null,null,null,null,null,null,null,null,null,null,null,null,null,null,null,null,null,null,null,"ŞUBAT",0,0,"Bilişsel yeterlilikleri ve kişilik özelliklerini\ngeliştirebileceğine inanır.",null,null,null,null,null,null,null,null,null,28,"HÜSEYİN OKAN ERTÜRK",null,null,null,null,null,null,null,null,null,null,"2025-01-28"]
[2,null,null,null,null,null,null,null,null,null,null,null,null,null,null,null,null,null,null,null,"ŞUBAT",0,0,"DP - RPD Hizmetleri Yürütme Komisyonu Toplantısının Yapılması",null,null,null,null,null,null,null,null,null,29,"FATİH ÇELEBİ",null,null,null,null,null,null,null,null,null,null,"2025-01-29"]
[3,null,null,null,null,null,null,null,null,null,null,null,null,null,null,null,null,null,null,null,"MART",0,0,"Zorbalık ve türlerini bilir.",null,null,null,null,null,null,null,null,null,30,"M.SELİM GÜMÜŞTEN",null,null,null,null,null,null,null,null,null,null,"2025-01-30"]
["ÖĞRENCİLERLE YAPILAN GÖRÜŞMELER",null,null,null,null,null,null,null,null,null,null,null,null,null,null,null,null,null,null,null,"MART",0,0,"Zorbalıkla baş etme yollarını kullanır.",null,null,null,null,null,null,null,null,null,31,"ELİF BUDAK",null,null,null,null,null,null,null,null,null,null,"2025-01-31"]
["ÖĞRENCİNİN","SIRA",null,"NO",null," ADI VE SOYADI",null,null,null,null,"GÖRÜŞME KONUSU",null,null,null,null,null,"TARİH",null,null,null,"MART",0,0,"Yetenekleriyle derslerin etkinliklerini\nilişkilendirir.",null,null,null,null,null,null,null,null,null,32,"EMİNE METİN",null,null,null,null,null,null,null,null,null,null,""]
[null,1,null,null,null,null,null,null,null,null,null,null,null,null,null,null,null,null,null,null,"MART",0,0,"Yetenekleriyle mesleklerin özelliklerini\nilişkilendirir.",null,null,null,null,null,null,null,null,null,33,"HÜSEYİN BAŞARAN",null,null,null,null,null,null,null,null,null,null,""]
[null,2,null,null,null,null,null,null,null,null,null,null,null,null,null,null,null,null,null,null,"MART",0,0,"Bilişim teknolojileri kullanımında kendini yönetir.",null,null,null,null,null,null,null,null,null,34,"MUKADDES AYKUT"]
[null,3,null,null,null,null,null,null,null,null,null,null,null,null,null,null,null,null,null,null,"NİSAN",0,0,"ARA TATİL",null,null,null,null,null,null,null,null,null,35]
["DİĞER ÇALIŞMALAR",1,null,null,null,null,null,null,null,null,null,null,null,null,null,null,null,null,null,null,"NİSAN",0,0,"Karakter güçleriyle iyi oluşu arasında bağ kurar.",null,null,null,null,null,null,null,null,null,36]
[null,2,null,null,null,null,null,null,null,null,null,null,null,null,null,null,null,null,null,null,"NİSAN",0,0,"Sahip olduğu karakter güçlerini geliştirmek için çaba gösterir.",null,null,null,null,null,null,null,null,null,37]
[null,null,null,null,null,null,null,null,null,null,null,null,null,null,null,null,null,null,null,null,"NİSAN",0,0,"Baskı altında serinkanlı davranışlar sergiler.",null,null,null,null,null,null,null,null,null,38]
[null,null,null,null,null,null,null,null,null,null,null,null,null,null,null,null,null,null,null,null,"NİSAN",0,0,"Bir ürün ortaya koymanın zaman, çaba ve sabır gerektirdiğini fark eder.",null,null,null,null,null,null,null,null,null,39]
[null,{"$f":"F4","v":"FATİH ÇELEBİ"},null,null,null,null,null,null,null,null,null,null,null,"Ümit GÜZEL",null,null,null,null,null,null,"MAYIS",0,0,"Başarı ve başarısızlık durumlarını açıklama biçimlerini değerlendirir.",null,null,null,null,null,null,null,null,null,40]
[null,"Sınıf/Şube Rehber Öğretmeni",null,null,null,null,null,null,null,null,null,null,null,"Okul Müdürü",null,null,null,null,null,null,"MAYIS",0,0,"Okulun kendisi için önemini açıklar.",null,null,null,null,null,null,null,null,null,41]
[null,null,null,null,null,null,null,null,null,null,null,null,null,null,null,null,null,null,null,null,"MAYIS",0,0,"Bu zamana kadar verdiği kararları karar verme sürecini etkileyen faktörler açısından değerlendirir.",null,null,null,null,null,null,null,null,null,42]
[null,null,null,null,null,null,null,null,null,null,null,null,null,null,null,null,null,null,null,null,"MAYIS",0,0,"Karar verme basamaklarını açıklar.",null,null,null,null,null,null,null,null,null,43]
[null,null,null,null,null,null,null,null,null,null,null,null,null,null,null,null,null,null,null,null,"MAYIS",0,0,"Rehberlik ihtiyacı belirleme anketi uygulamaları (öğrenci,veli), sınıf sonuç çizelgelerinin hazırlanması (öğrenci)",null,null,null,null,null,null,null,null,null,44]
[null,null,null,null,null,null,null,null,null,null,null,null,null,null,null,null,null,null,null,null,"HAZİRAN",0,0,"Karar verme basamaklarını kullanır.",null,null,null,null,null,null,null,null,null,45]
[null,null,null,null,null,null,null,null,null,null,null,null,null,null,null,null,null,null,null,null,"HAZİRAN",0,0,"2.Dönem sonu sınıf rehberlik faaliyet raporunun hazırlanması ve teslimi",null,null,null,null,null,null,null,null,null,46]
[null,null,null,null,null,null,null,null,null,null,null,null,null,null,null,null,null,null,null,null,"HAZİRAN",0,0,"Sınıf rehberlik programı\netkinliklerine/yaşantılarına ilişkin duygu ve düşüncelerini yansıtır.",null,null,null,null,null,null,null,null,null,47]
[null,null,null,null,null,null,null,null,null,null,null,null,null,null,null,null,null,null,null,null,"HAZİRAN",0,0,"DP - RPD Hizmetleri Yürütme Komisyonu Toplantısının Yapılması",null,null,null,null,null,null,null,null,null,48]
[null,null,null,null,null,null,null,null,null,null,null,null,null,null,null,null,null,null,null,null,null,null,null,null,null,null,null,null,null,null,null,null,null,49]
[null,null,null,null,null,null,null,null,null,null,null,null,null,null,null,null,null,null,null,null,null,null,null,null,null,null,null,null,null,null,null,null,null,50]
[null,null,null,null,null,null,null,null,null,null,null,null,null,null,null,null,null,null,null,null,null,null,null,null,null,null,null,null,null,null,null,null,null,51]
[null,null,null,null,null,null,null,null,null,null,null,null,null,null,null,null,null,null,null,null,null,null,null,null,null,null,null,null,null,null,null,null,null,52]
[null,null,null,null,null,null,null,null,null,null,null,null,null,null,null,null,null,null,null,null,null,null,null,null,null,null,null,null,null,null,null,null,null,53]
[null,null,null,null,null,null,null,null,null,null,null,null,null,null,null,null,null,null,null,null,null,null,null,null,null,null,null,null,null,null,null,null,null,54]
[null,null,null,null,null,null,null,null,null,null,null,null,null,null,null,null,null,null,null,null,null,null,null,null,null,null,null,null,null,null,null,null,null,55]
[null,null,null,null,null,null,null,null,null,null,null,null,null,null,null,null,null,null,null,null,null,null,null,null,null,null,null,null,null,null,null,null,null,56]
[null,null,null,null,null,null,null,null,null,null,null,null,null,null,null,null,null,null,null,null,null,null,null,null,null,null,null,null,null,null,null,null,null,57]
[null,null,null,null,null,null,null,null,null,null,null,null,null,null,null,null,null,null,null,null,null,null,null,null,null,null,null,null,null,null,null,null,null,58]
[null,null,null,null,null,null,null,null,null,null,null,null,null,null,null,null,null,null,null,null,null,null,null,null,null,null,null,null,null,null,null,null,null,59]

{"sheet":"8sınıf","index":4,"n_rows":59,"n_cols":46,"rows_kept":59,"cut":false,"hidden":false,"merged":[[0,0,0,17],[1,0,1,4],[1,7,1,8],[1,9,1,11],[1,12,1,17],[2,0,2,17],[3,0,3,4],[3,5,3,8],[3,9,3,10],[3,12,3,14],[3,15,3,17],[4,0,4,3],[4,5,4,6],[4,7,4,9],[4,11,4,12],[4,14,4,16],[5,0,5,1],[5,2,5,4],[5,5,5,17],[6,0,8,1],[6,2,8,4],[6,5,6,7],[6,8,6,17],[7,5,7,7],[7,8,7,17],[8,5,8,7],[12,0,14,1],[12,2,14,4],[12,5,12,7],[12,8,12,17],[13,5,13,7],[13,8,13,17],[14,5,14,7],[14,8,14,17],[8,8,8,17],[9,0,11,1],[9,2,11,4],[9,5,9,7],[9,8,9,17],[10,5,10,7],[10,8,10,17],[11,5,11,7],[11,8,11,17],[18,0,20,1],[18,2,20,4],[18,5,18,7],[18,8,18,17],[19,5,19,7],[19,8,19,17],[20,5,20,7],[20,8,20,17],[15,0,17,1],[15,2,17,4],[15,5,15,7],[15,8,15,17],[16,5,16,7],[16,8,16,17],[17,5,17,7],[17,8,17,17],[23,0,23,1],[23,2,23,8],[23,9,23,11],[23,12,23,13],[23,14,23,15],[23,16,23,17],[21,0,22,8],[21,9,22,11],[21,12,21,17],[22,12,22,13],[22,14,22,15],[22,16,22,17],[25,0,25,17],[26,0,26,1],[26,2,26,5],[26,6,26,9],[26,10,26,15],[26,16,26,17],[24,0,24,1],[24,2,24,8],[24,9,24,11],[24,12,24,13],[24,14,24,15],[24,16,24,17],[29,0,29,1],[29,2,29,5],[29,6,29,9],[29,10,29,15],[29,16,29,17],[30,0,30,17],[27,0,27,1],[27,2,27,5],[27,6,27,9],[27,10,27,15],[27,16,27,17],[28,0,28,1],[28,2,28,5],[28,6,28,9],[28,10,28,15],[28,16,28,17],[35,0,36,0],[35,1,35,2],[35,3,35,17],[36,1,36,2],[36,3,36,17],[32,16,32,17],[33,1,33,2],[33,3,33,4],[33,5,33,9],[33,10,33,15],[33,16,33,17],[31,0,34,0],[31,1,31,2],[31,3,31,4],[31,5,31,9],[31,10,31,15],[31,16,31,17],[32,1,32,2],[32,3,32,4],[32,5,32,9],[32,10,32,15],[39,1,39,5],[39,13,39,17],[40,1,40,5],[40,13,40,17],[34,1,34,2],[34,3,34,4],[34,5,34,9],[34,10,34,15],[34,16,34,17]]}
["2024-2025 EĞİTİM VE ÖĞRETİM YILI \nŞEHİT ABDULHAMİT KAYA İMAM HATİP ORTAOKULU",null,null,null,null,null,null,null,null,null,null,null,null,null,null,null,null,null,null,"EYLÜL","EYLÜL",{"$f":"IF(U1=$J$2,1,0)","v":0},{"$f":"V1","v":0},"Sınıf başkanı, başkan yardımcısı seçimi- sınıf oturma planı hazırlama",null,null,null,{"$f":"MATCH(1,$W$1:$W$64,0)","v":35},{"$f":"MATCH(LARGE($W$1:$W$64,1),$W$1:$W$64,0)","v":39},null,null,null,"/ A",1,"GÖKBEN OKTAN",null,null,null,null,null,null,"EYLÜL","2024-09-01",{"$f":"EOMONTH(AQ1,0)","v":"2024-09-30"},null,{"$f":"VLOOKUP($J$2,AP1:AR10,2,0)","v":"2025-04-01"}]
["REHBERLİK HİZMETLERİ",null,null,null,null,8,"/ D","SINIFI",null,"NİSAN",null,null," AYI ÇALIŞMA RAPORU",null,null,null,null,null,null,"EKİM","EYLÜL",{"$f":"IF(U2=$J$2,1,0)","v":0},{"$f":"IF(V2=1,W1+1,0)","v":0},"Öğrenci Bilgi Formu Uygulaması/güncellemesi",null,null,null,null,{"$f":"\"x\"&$AB$1&\":x\"&$AC$1","v":"x35:x39"},{"$f":"\"y\"&$AB$1&\":y\"&$AC$1","v":"y35:y39"},{"$f":"\"z\"&$AB$1&\":z\"&$AC$1","v":"z35:z39"},null,"/ B",2,"DEMET CAN",null,null,null,null,null,null,"EKİM",{"$f":"EDATE(AQ1,1)","v":"2024-10-01"},{"$f":"EOMONTH(AQ2,0)","v":"2024-10-31"},null,{"$f":"IFERROR(IF((AT1+1)<=VLOOKUP($J$2,$AP$1:$AR$10,3,0),AT1+1,\"\"),\"\")","v":"2025-04-02"}]
[null,null,null,null,null,null,null,null,null,null,null,null,null,null,null,null,null,null,null,"KASIM","EYLÜL",0,{"$f":"IF(V3=1,W2+1,0)","v":0},"Öz bakım becerileri sergiler.",null,null,null,null,null,null,null,null,"/ C",3,"DERYA ÇINAR",null,null,null,null,null,null,"KASIM",{"$f":"EDATE(AQ2,1)","v":"2024-11-01"},"2024-11-30",null,{"$f":"IFERROR(IF((AT2+1)<=VLOOKUP($J$2,$AP$1:$AR$10,3,0),AT2+1,\"\"),\"\")","v":"2025-04-03"}]
["SINIF/ŞUBE REHBER  ÖĞRETMENİNİN ADI SOYADI    ",null,null,null,null,"İRFAN KARA",null,null,null,"RAPOR NO",null,null,"RAPOR TARİHİ",null,null,null,null,null,null,"ARALIK","EYLÜL",0,0,"Yapabildiği ve hoşlandığı etkinliklere dayalı olarak ilgi ve yeteneklerine örnekler verir.",null,null,null,null,null,null,null,null,"/ D",4,"TUBA YÜCEL",null,null,null,null,null,null,"ARALIK","2024-12-01","2024-12-31",null,"2025-04-04"]
["SINIF",null,null,null,{"$f":"CONCATENATE(F2,G2)","v":"8/ D"},"SINIF MEVCUDU",null,"KIZ",null,null,null,"ERKEK",null,null,"TOPLAM",null,null,{"$f":"SUM(K5+N5)","v":0},null,"OCAK","EYLÜL",0,0,"Okul içi veya okul dışındaki etkinliklere\nkatılırken ilgi ve yeteneklerini dikkate alır.",null,null,null,null,null,null,null,null,"/ E",5,"EMİNE METİN",null,null,null,null,null,null,"OCAK","2025-01-01","2025-01-31",null,"2025-04-05"]
["SIRA",null,"TARİH",null,null,"ETKİNLİK ÇALIŞMALARI",null,null,null,null,null,null,null,null,null,null,null,null,null,"ŞUBAT","EKİM",0,0,"Akademik sorumluluklarını ertelemenin\nsonuçlarını fark eder.",null,null,null,null,null,null,null,null,"/ F",6,"ADEM DİŞÇİ",null,null,null,null,null,null,"ŞUBAT","2025-02-01","2025-02-28",null,"2025-04-06"]
[1,null,null,null,null,"ETKİNLİĞİN ADI",null,null,null,null,null,null,null,null,null,null,null,null,null,"MART","EKİM",0,0,"Beden imgesini etkileyen faktörleri bilir.",null,null,null,null,null,null,null,null,null,7,"EBRU BÜLBÜL",null,null,null,null,null,null,"MART","2025-03-01","2025-03-31",null,"2025-04-07"]
[null,null,null,null,null,"KAZANIM",null,null,null,null,null,null,null,null,null,null,null,null,null,"NİSAN","EKİM",0,0,"Bir üst öğretim kurumuna ilişkin ön bilgiler edinir.",null,null,null,null,null,null,null,null,null,8,"ERDOĞAN YILMAZ",null,null,null,null,null,null,"NİSAN","2025-04-01","2025-04-30",null,"2025-04-08"]
[null,null,null,null,null,"YETERLİLİK ALANI",null,null,null,null,null,null,null,null,null,null,null,null,null,"MAYIS","EKİM",0,0,"Üst öğretim kurumlarına geçiş sınavlarıyla ilgili bilgi edinir.",null,null,null,null,null,null,null,null,null,9,"YUSUF KALKAN",null,null,null,null,null,null,"MAYIS","2025-05-01","2025-05-31",null,"2025-04-09"]
[2,null,null,null,null,"ETKİNLİĞİN ADI",null,null,null,null,null,null,null,null,null,null,null,null,null,"HAZİRAN","KASIM",0,0,"Stresle baş etmede uygun yöntemler kullanır.",null,null,null,null,null,null,null,null,null,10,"İRFAN KARA",null,null,null,null,null,null,"HAZİRAN","2025-06-01","2025-06-30",null,"2025-04-10"]
[null,null,null,null,null,"KAZANIM",null,null,null,null,null,null,null,null,null,null,null,null,null,null,"KASIM",0,0,"Stresle baş etmede uygun yöntemler kullanır.",null,null,null,null,null,null,null,null,null,11,"EVİN KARAKAYA",null,null,null,null,null,null,null,null,null,null,"2025-04-11"]
[null,null,null,null,null,"YETERLİLİK ALANI",null,null,null,null,null,null,null,null,null,null,null,null,null,null,"KASIM",0,0,"ARA TATİL",null,null,null,null,null,null,null,null,null,12,"AYNUR ÖZDEMİR",null,null,null,null,null,null,null,null,null,null,"2025-04-12"]
[3,null,null,null,null,"ETKİNLİĞİN ADI",null,null,null,null,null,null,null,null,null,null,null,null,null,null,"KASIM",0,0,"*Sınavlara ilişkin duygularını açıklar.",null,null,null,null,null,null,null,null,null,13,"AYŞE PİRİNÇÇİ",null,null,null,null,null,null,null,null,null,null,"2025-04-13"]
[null,null,null,null,null,"KAZANIM",null,null,null,null,null,null,null,null,null,null,null,null,null,null,"KASIM",0,0,"Üst öğretim kurumlarına geçiş sınavlarına hazırlanmak ve başarılı olmak için stratejiler geliştirir.",null,null,null,null,null,null,null,null,null,14,"GÜLDEN GÜLER",null,null,null,null,null,null,null,null,null,null,"2025-04-14"]
[null,null,null,null,null,"YETERLİLİK ALANI",null,null,null,null,null,null,null,null,null,null,null,null,null,null,"KASIM",0,0,"Sınıf risk haritasının hazırlanması",null,null,null,null,null,null,null,null,null,15,"SUNADÜĞÜNYURDU",null,null,null,null,null,null,null,null,null,null,"2025-04-15"]
[4,null,null,null,null,"ETKİNLİĞİN ADI",null,null,null,null,null,null,null,null,null,null,null,null,null,null,"ARALIK",0,0,"Davranışları ve değerleri arasında bağ kurar.",null,null,null,null,null,null,null,null,null,16,"YASİN HAKAN",null,null,null,null,null,null,null,null,null,null,"2025-04-16"]
[null,null,null,null,null,"KAZANIM",null,null,null,null,null,null,null,null,null,null,null,null,null,null,"ARALIK",0,0,"Mesleki değerlerinin farkına varır.",null,null,null,null,null,null,null,null,null,17,"DERYA ALİOĞLU",null,null,null,null,null,null,null,null,null,null,"2025-04-17"]
[null,null,null,null,null,"YETERLİLİK ALANI",null,null,null,null,null,null,null,null,null,null,null,null,null,null,"ARALIK",0,0,"Kısa ve uzun vadeli kariyer amaçları oluşturur.",null,null,null,null,null,null,null,null,null,18,"MÜMİN KELEŞ",null,null,null,null,null,null,null,null,null,null,"2025-04-18"]
[5,null,null,null,null,"ETKİNLİĞİN ADI",null,null,null,null,null,null,null,null,null,null,null,null,null,null,"ARALIK",0,0,"İhtiyaç duyduğunda yardım arar.",null,null,null,null,null,null,null,null,null,19,"AYŞE AKYOL",null,null,null,null,null,null,null,null,null,null,"2025-04-19"]
[null,null,null,null,null,"KAZANIM",null,null,null,null,null,null,null,null,null,null,null,null,null,null,"OCAK",0,0,"Öğrenme ve verimli çalışma stratejilerini açıklar.",null,null,null,null,null,null,null,null,null,20,"LEYLA TEPESU",null,null,null,null,null,null,null,null,null,null,"2025-04-20"]
[null,null,null,null,null,"YETERLİLİK ALANI",null,null,null,null,null,null,null,null,null,null,null,null,null,null,"OCAK",0,0,"Belleğini güçlendirecek stratejileri kullanır.",null,null,null,null,null,null,null,null,null,21,"YELİZ FİTOZ",null,null,null,null,null,null,null,null,null,null,{"$f":"IFERROR(IF((AT20+1)<=VLOOKUP($J$2,$AP$1:$AR$10,3,0),AT20+1,\"\"),\"\")","v":"2025-04-21"}]
["UYGULANAN TEST VE ANKETLER",null,null,null,null,null,null,null,null,"UYGULAMA TARİHİ",null,null,"UYGULANAN ÖĞRENCİ SAYISI",null,null,null,null,null,null,null,"OCAK",0,0,"İyi oluşunu destekleyen duygu ve davranışları fark eder.",null,null,null,null,null,null,null,null,null,22,"GÜLİSTAN TEKTAŞ",null,null,null,null,null,null,null,null,null,null,"2025-04-22"]
[null,null,null,null,null,null,null,null,null,null,null,null,"KIZ",null," ERKEK",null,"TOPLAM",null,null,null,"OCAK",0,0,"1.Dönem sonu sınıf rehberlik faaliyet raporunun hazırlanması ve teslimi",null,null,null,null,null,null,null,null,null,23,"CEYDA AZAKLI",null,null,null,null,null,null,null,null,null,null,"2025-04-23"]
[1,null,null,null,null,null,null,null,null,null,null,null,null,null,null,null,{"$f":"SUM(M24:P24)","v":0},null,null,null,"OCAK",0,0,"YARIYIL TATİLİ",null,null,null,null,null,null,null,null,null,24,"ZEHRA DURDU",null,null,null,null,null,null,null,null,null,null,"2025-04-24"]
[2,null,null,null,null,null,null,null,null,null,null,null,null,null,null,null,null,null,null,null,"ŞUBAT",0,0,"YARIYIL TATİLİ",null,null,null,null,null,null,null,null,null,25,"SAİT AFŞAR",null,null,null,null,null,null,null,null,null,null,"2025-04-25"]
["VELİLERLE YAPILAN GÖRÜŞMELER",null,null,null,null,null,null,null,null,null,null,null,null,null,null,null,null,null,null,null,"ŞUBAT",0,0,"Öğrenme ortamlarındaki duygularını düzenler.",null,null,null,null,null,null,null,null,null,26,"HİLAL SEZER",null,null,null,null,null,null,null,null,null,null,"2025-04-26"]
["SIRA",null,"VELİ",null,null,null,"ÖĞRENCİSİ",null,null,null,"GÖRÜŞME KONUSU",null,null,null,null,null,"TARİH",null,null,null,"ŞUBAT",0,0,"Kariyer amaçları ile kariyer beklentilerini karşılaştırır.",null,null,null,null,null,null,null,null,null,27,"HATİCE BÜŞRA ÇİFTÇİ",null,null,null,null,null,null,null,null,null,null,{"$f":"IFERROR(IF((AT26+1)<=VLOOKUP($J$2,$AP$1:$AR$10,3,0),AT26+1,\"\"),\"\")","v":"2025-04-27"}]
[1,null,null,null,null,null,null,null,null,null,null,null,null,null,null,null,null,null,null,null,"ŞUBAT",0,0,"Kariyer amaçları ile kariyer beklentilerini karşılaştırır.",null,null,null,null,null,null,null,null,null,28,"HÜSEYİN OKAN ERTÜRK",null,null,null,null,null,null,null,null,null,null,"2025-04-28"]
[2,null,null,null,null,null,null,null,null,null,null,null,null,null,null,null,null,null,null,null,"ŞUBAT",0,0,"DP - RPD Hizmetleri Yürütme Komisyonu Toplantısının Yapılması",null,null,null,null,null,null,null,null,null,29,"FATİH ÇELEBİ",null,null,null,null,null,null,null,null,null,null,"2025-04-29"]
[3,null,null,null,null,null,null,null,null,null,null,null,null,null,null,null,null,null,null,null,"MART",0,0,"Akran baskısıyla baş etmede uygun yolları kullanır.",null,null,null,null,null,null,null,null,null,30,"M.SELİM GÜMÜŞTEN",null,null,null,null,null,null,null,null,null,null,"2025-04-30"]
["ÖĞRENCİLERLE YAPILAN GÖRÜŞMELER",null,null,null,null,null,null,null,null,null,null,null,null,null,null,null,null,null,null,null,"MART",0,0,"Bilişim teknolojileri kullanımında kendini\nyönetir.",null,null,null,null,null,null,null,null,null,31,"ELİF BUDAK",null,null,null,null,null,null,null,null,null,null,""]
["ÖĞRENCİNİN","SIRA",null,"NO",null," ADI VE SOYADI",null,null,null,null,"GÖRÜŞME KONUSU",null,null,null,null,null,"TARİH",null,null,null,"MART",0,0,"Yaşamda karşılaşılan zorlukların çaba ve zaman ile üstesinden gelinebileceğini fark eder.",null,null,null,null,null,null,null,null,null,32,"EMİNE METİN",null,null,null,null,null,null,null,null,null,null,""]
[null,1,null,null,null,null,null,null,null,null,null,null,null,null,null,null,null,null,null,null,"MART",0,0,"Kendi özellikleriyle seçmek istediği lise türlerinin özelliklerini ilişkilendirir.",null,null,null,null,null,null,null,null,null,33,"HÜSEYİN BAŞARAN",null,null,null,null,null,null,null,null,null,null,""]
[null,2,null,null,null,null,null,null,null,null,null,null,null,null,null,null,null,null,null,null,"MART",0,0,"Kendi özellikleriyle seçmek istediği lise türlerinin özelliklerini ilişkilendirir.",null,null,null,null,null,null,null,null,null,34,"MUKADDES AYKUT"]
[null,3,null,null,null,null,null,null,null,null,null,null,null,null,null,null,null,null,null,null,"NİSAN",1,1,"ARA TATİL",null,null,null,null,null,null,null,null,null,35]
["DİĞER ÇALIŞMALAR",1,null,null,null,null,null,null,null,null,null,null,null,null,null,null,null,null,null,null,"NİSAN",1,2,"Sahip olduğu karakter güçlerini zorluklar\nkarşısında kullanmayı bilir.",null,null,null,null,null,null,null,null,null,36]
[null,2,null,null,null,null,null,null,null,null,null,null,null,null,null,null,null,null,null,null,"NİSAN",1,3,"Toplum için gönüllü çalışmanın gerekliliğini açıklar.",null,null,null,null,null,null,null,null,null,37]
[null,null,null,null,null,null,null,null,null,null,null,null,null,null,null,null,null,null,null,null,"NİSAN",1,4,"Öğrenmenin hayat boyu devam ettiğini fark eder.",null,null,null,null,null,null,null,null,null,38]
[null,null,null,null,null,null,null,null,null,null,null,null,null,null,null,null,null,null,null,null,"NİSAN",1,5,"Lise türü seçimine ilişkin kararını verirken kendi görüşleri ile aile ve yakın çevresinin görüşlerini karşılaştırır.",null,null,null,null,null,null,null,null,null,39]
[null,{"$f":"F4","v":"İRFAN KARA"},null,null,null,null,null,null,null,null,null,null,null,"Ümit GÜZEL",null,null,null,null,null,null,"MAYIS",0,0,"Lise türü seçimine ilişkin kararını verirken kendi görüşleri ile aile ve yakın çevresinin görüşlerini karşılaştırır.",null,null,null,null,null,null,null,null,null,40]
[null,"Sınıf/Şube Rehber Öğretmeni",null,null,null,null,null,null,null,null,null,null,null,"Okul Müdürü",null,null,null,null,null,null,"MAYIS",0,0,"Lise türü seçimi yaparken karar verme becerisini kullanır.",null,null,null,null,null,null,null,null,null,41]
[null,null,null,null,null,null,null,null,null,null,null,null,null,null,null,null,null,null,null,null,"MAYIS",0,0,"Lise türü seçimi yaparken karar verme becerisini kullanır.",null,null,null,null,null,null,null,null,null,42]
[null,null,null,null,null,null,null,null,null,null,null,null,null,null,null,null,null,null,null,null,"MAYIS",0,0,"Lise türüne ilişkin kararını tekrar değerlendirir.",null,null,null,null,null,null,null,null,null,43]
[null,null,null,null,null,null,null,null,null,null,null,null,null,null,null,null,null,null,null,null,"MAYIS",0,0,"Rehberlik ihtiyacı belirleme anketi uygulamaları (öğrenci,veli), sınıf sonuç çizelgelerinin hazırlanması (öğrenci)",null,null,null,null,null,null,null,null,null,44]
[null,null,null,null,null,null,null,null,null,null,null,null,null,null,null,null,null,null,null,null,"HAZİRAN",0,0,"Bir üst öğretim kurumuna geçiş sürecine yönelik duygu ve düşüncelerini ifade eder.",null,null,null,null,null,null,null,null,null,45]
[null,null,null,null,null,null,null,null,null,null,null,null,null,null,null,null,null,null,null,null,"HAZİRAN",0,0,"2.Dönem sonu sınıf rehberlik faaliyet raporunun hazırlanması ve teslimi",null,null,null,null,null,null,null,null,null,46]
[null,null,null,null,null,null,null,null,null,null,null,null,null,null,null,null,null,null,null,null,"HAZİRAN",0,0,"Sınıf rehberlik programı\netkinliklerine/yaşantılarına ilişkin duygu ve düşüncelerini yansıtır.",null,null,null,null,null,null,null,null,null,47]
[null,null,null,null,null,null,null,null,null,null,null,null,null,null,null,null,null,null,null,null,"HAZİRAN",0,0,"DP - RPD Hizmetleri Yürütme Komisyonu Toplantısının Yapılması",null,null,null,null,null,null,null,null,null,48]
[null,null,null,null,null,null,null,null,null,null,null,null,null,null,null,null,null,null,null,null,null,null,null,null,null,null,null,null,null,null,null,null,null,49]
[null,null,null,null,null,null,null,null,null,null,null,null,null,null,null,null,null,null,null,null,null,null,null,null,null,null,null,null,null,null,null,null,null,50]
[null,null,null,null,null,null,null,null,null,null,null,null,null,null,null,null,null,null,null,null,null,null,null,null,null,null,null,null,null,null,null,null,null,51]
[null,null,null,null,null,null,null,null,null,null,null,null,null,null,null,null,null,null,null,null,null,null,null,null,null,null,null,null,null,null,null,null,null,52]
[null,null,null,null,null,null,null,null,null,null,null,null,null,null,null,null,null,null,null,null,null,null,null,null,null,null,null,null,null,null,null,null,null,53]
[null,null,null,null,null,null,null,null,null,null,null,null,null,null,null,null,null,null,null,null,null,null,null,null,null,null,null,null,null,null,null,null,null,54]
[null,null,null,null,null,null,null,null,null,null,null,null,null,null,null,null,null,null,null,null,null,null,null,null,null,null,null,null,null,null,null,null,null,55]
[null,null,null,null,null,null,null,null,null,null,null,null,null,null,null,null,null,null,null,null,null,null,null,null,null,null,null,null,null,null,null,null,null,56]
[null,null,null,null,null,null,null,null,null,null,null,null,null,null,null,null,null,null,null,null,null,null,null,null,null,null,null,null,null,null,null,null,null,57]
[null,null,null,null,null,null,null,null,null,null,null,null,null,null,null,null,null,null,null,null,null,null,null,null,null,null,null,null,null,null,null,null,null,58]
[null,null,null,null,null,null,null,null,null,null,null,null,null,null,null,null,null,null,null,null,null,null,null,null,null,null,null,null,null,null,null,null,null,59]

{"sheet":"Sayfa1","index":5,"n_rows":4,"n_cols":2,"rows_kept":4,"cut":false,"hidden":false,"merged":[]}
["KAZANIM","ETKİNLİK ADI"]
["KARAR TERAZİSİ/EMİN MİSİNİZ? SON KARARINIZ MI?","Lise türüne ilişkin kararını tekrar değerlendirir."]
["DÜŞÜN, HİSSET, YAZ!","Bir üst öğretim kurumuna geçiş sürecine yönelik duygu ve düşüncelerini ifade\neder."]
["NELERİ HATIRLIYORUM?","Sınıf rehberlik programı etkinliklerine/yaşantılarına ilişkin duygu ve\ndüşüncelerini yansıtır."]